bitfinex/quotes_SOLUSD_20250401
["timestamp","ask_amount","ask_price","bid_price","bid_amount"]
[1743525307923,23.55610792,128.76,128.75,7.54]
[1743525308135,31.32240792,128.76,128.75,7.54]
[1743525308946,31.32240792,128.76,128.74,223.86]
[1743525309240,23.55610792,128.75,128.74,223.86]
[1743525309732,0.063,128.77,128.74,223.86]
[1743525310615,0.063,128.77,128.76,20.14216157]
[1743525310818,0.063,128.77,128.76,18.933972]
[1743525311022,0.063,128.77,128.76,99.833972]
[1743525312441,0.063,128.77,128.76,107.600272]
[1743525313038,0.063,128.77,128.76,109.02041135]
[1743525315023,0.03,128.8,128.79,58.79181043]
[1743525315227,0.03,128.8,128.79,66.473972]
[1743525315923,0.03,128.8,128.79,38.933972]
[1743525316119,0.03,128.8,128.79,27.68216157]
[1743525316540,0.03,128.8,128.79,66.473972]
[1743525319226,0.03,128.8,128.79,74.238472]
[1743525319625,0.03,128.8,128.79,20.0]
[1743525319852,0.03,128.8,128.79,27.68216157]
[1743525320030,0.03,128.8,128.79,46.473972]
[1743525320230,0.03,128.8,128.79,66.473972]
[1743525320538,0.03,128.8,128.79,155.138472]
[1743525320734,0.03,128.8,128.79,159.07001961]
[1743525322347,0.03,128.8,128.79,165.28914502]
[1743525323050,0.03,128.8,128.79,388.88914502]
[1743525325138,0.03,128.8,128.79,381.12464502]
[1743525325443,0.03,128.8,128.79,370.953972]
[1743525325847,0.03,128.8,128.79,251.12]
[1743525326065,0.03,128.8,128.79,243.6]
[1743525326254,0.03,128.8,128.79,251.12]
[1743525326442,0.03,128.8,128.79,231.12]
[1743525329072,0.03,128.8,128.79,239.02666157]
[1743525329367,0.03,128.8,128.79,358.718472]
[1743525331157,0.03,128.8,128.79,343.433972]
[1743525331356,0.03,128.8,128.79,350.953972]
[1743525331956,0.03,128.8,128.79,312.16216157]
[1743525334150,0.03,128.8,128.79,319.92666157]
[1743525334349,0.03,128.8,128.79,358.718472]
[1743525334735,0.03,128.8,128.79,312.16216157]
[1743525336864,0.03,128.8,128.79,231.26216157]
[1743525338140,0.03,128.8,128.79,270.053972]
[1743525342565,0.03,128.8,128.79,231.12]
[1743525342946,0.03,128.8,128.79,270.053972]
[1743525343356,0.03,128.8,128.79,277.818472]
[1743525344757,0.9888039,128.81,128.8,18.933972]
[1743525346859,0.9888039,128.81,128.8,26.697872]
[1743525348650,0.9888039,128.81,128.8,107.597872]
[1743525349074,0.9888039,128.81,128.8,99.833972]
[1743525349377,0.9888039,128.81,128.8,107.353972]
[1743525353777,1.0188039,128.81,128.8,107.353972]
[1743525355455,1.0188039,128.81,128.8,115.117872]
[1743525355676,25.19150792,128.88,128.83,20.0]
[1743525355677,9.3948,128.88,128.83,20.0]
[1743525355854,28.7926,128.88,128.81,20.0]
[1743525356056,43.82235671,128.88,128.82,18.79181043]
[1743525356272,43.82235671,128.88,128.83,7.52]
[1743525356662,9.3948,128.88,128.84,223.52]
[1743525359072,1.6354,128.88,128.84,223.52]
[1743525359784,6.2587,128.89,128.84,231.2815]
[1743525360383,6.2587,128.89,128.84,223.52]
[1743525360559,6.2587,128.89,128.85,38.933972]
[1743525361153,6.2587,128.89,128.84,223.52]
[1743525361377,14.0174,128.89,128.84,223.52]
[1743525361572,6.2587,128.89,128.84,223.52]
[1743525361957,6.2587,128.89,128.84,231.2815]
[1743525363499,112.19722259,128.91,128.85,38.933972]
[1743525363986,119.95462259,128.91,128.85,46.694572]
[1743525364162,119.95462259,128.91,128.85,38.933972]
[1743525364362,112.19722259,128.91,128.85,46.694872]
[1743525364563,119.95462259,128.91,128.85,46.694872]
[1743525365083,119.95462259,128.91,128.85,38.933972]
[1743525365280,112.19722259,128.91,128.85,46.694872]
[1743525365780,97.16746588,128.91,128.85,46.694872]
[1743525367667,119.95462259,128.91,128.85,38.933972]
[1743525367869,119.95462259,128.91,128.85,46.694772]
[1743525368074,119.95452259,128.91,128.85,46.694772]
[1743525368278,119.95452259,128.91,128.85,38.933972]
[1743525368474,97.16746588,128.91,128.85,46.694772]
[1743525370292,1.663,128.91,128.85,46.694772]
[1743525370468,1.663,128.91,128.87,20.0]
[1743525370670,1.663,128.91,128.88,7.52]
[1743525371077,1.663,128.91,128.89,223.48]
[1743525375873,142.19663906,128.93,128.89,223.48]
[1743525375874,119.41058235,128.93,128.89,223.48]
[1743525376288,119.41058235,128.93,128.9,0.28432314]
[1743525376469,119.41058235,128.93,128.9,20.28432314]
[1743525376985,119.41058235,128.93,128.9,26.40592631]
[1743525377171,119.41058235,128.93,128.92,20.28432314]
[1743525378793,119.41058235,128.93,128.92,46.690672]
[1743525379091,0.03,128.93,128.92,46.690672]
[1743525380679,0.03,128.93,128.92,38.933972]
[1743525381071,0.03,128.93,128.92,46.433972]
[1743525382187,0.03,128.93,128.92,20.0]
[1743525382499,0.03,128.93,128.92,7.5]
[1743525385087,15.05975671,128.93,128.91,7.5]
[1743525385283,15.02975671,128.92,128.89,223.48]
[1743525385482,15.02975671,128.92,128.9,7.5]
[1743525385684,23.50416865,128.93,128.9,7.5]
[1743525386289,7.7567,128.92,128.9,7.5]
[1743525386692,31.23086865,128.92,128.9,7.5]
[1743525387504,23.47416865,128.91,128.9,7.5]
[1743525387693,8.30916157,128.86,128.81,0.063]
[1743525387884,66.9483373,128.82,128.81,0.063]
[1743525388093,18.64964886,128.81,128.77,30.063]
[1743525388294,57.65266865,128.78,128.77,0.063]
[1743525388498,20.26284886,128.77,128.71,7.5]
[1743525388703,23.47416865,128.73,128.71,7.5]
[1743525389208,23.47416865,128.74,128.71,7.5]
[1743525389585,20.26284886,128.77,128.71,7.5]
[1743525389803,23.47416865,128.73,128.71,7.5]
[1743525390107,23.47416865,128.72,128.69,223.38]
[1743525390401,23.47416865,128.71,128.69,230.88]
[1743525390888,23.47416865,128.72,128.69,230.88]
[1743525391289,23.47416865,128.71,128.69,230.88]
[1743525391693,23.47416865,128.72,128.69,230.88]
[1743525391995,23.47416865,128.7,128.69,230.88]
[1743525392389,23.47416865,128.71,128.69,230.88]
[1743525393102,23.47416865,128.71,128.69,223.38]
[1743525393278,26.41724886,128.74,128.69,223.38]
[1743525393279,23.47416865,128.7,128.69,223.38]
[1743525393479,23.47416865,128.71,128.69,223.38]
[1743525395003,23.47416865,128.7,128.69,223.38]
[1743525395202,23.47416865,128.7,128.68,0.063]
[1743525395409,23.47416865,128.69,128.68,0.063]
[1743525395587,29.61236865,128.69,128.68,0.063]
[1743525395789,20.23654886,128.68,128.67,0.063]
[1743525396104,43.99504065,128.68,128.67,0.063]
[1743525396297,43.99504065,128.68,128.64,0.063]
[1743525396298,73.37098616,128.65,128.64,0.063]
[1743525396498,18.64964886,128.64,128.63,0.063]
[1743525396706,65.59798616,128.64,128.63,0.063]
[1743525396886,46.9483373,128.64,128.63,0.063]
[1743525397780,54.7219373,128.64,128.63,0.063]
[1743525397988,23.47416865,128.64,128.63,0.063]
[1743525399807,37.73418761,128.64,128.63,0.063]
[1743525401208,102.17594722,128.64,128.63,0.063]
[1743525401607,38.933972,128.62,128.56,0.063]
[1743525401903,76.66815961,128.62,128.56,0.063]
[1743525402107,84.44295961,128.62,128.56,0.063]
[1743525402892,37.73418761,128.62,128.56,0.063]
[1743525403509,118.43418761,128.63,128.6,7.52]
[1743525403896,37.73418761,128.64,128.6,7.52]
[1743525404209,37.73418761,128.65,128.6,7.52]
[1743525404901,37.73418761,128.65,128.6,15.296]
[1743525405591,37.73418761,128.65,128.6,7.52]
[1743525405910,37.73418761,128.65,128.6,15.2959]
[1743525406693,80.7,128.67,128.6,15.2959]
[1743525406907,118.43418761,128.67,128.6,15.2959]
[1743525407209,118.43418761,128.67,128.6,239.1359]
[1743525407406,80.7,128.67,128.6,239.1359]
[1743525407587,80.7,128.67,128.61,18.996972]
[1743525407788,20.571772,128.72,128.61,18.996972]
[1743525407789,80.7,128.75,128.65,18.933972]
[1743525407990,118.43418761,128.75,128.66,7.52]
[1743525408188,37.73418761,128.74,128.66,7.52]
[1743525408404,37.73418761,128.73,128.67,7.7718]
[1743525409086,57.73418761,128.72,128.66,7.52]
[1743525409287,37.73418761,128.7,128.66,7.52]
[1743525409891,37.73418761,128.71,128.66,7.52]
[1743525410600,37.73418761,128.7,128.66,7.52]
[1743525412615,45.50438761,128.7,128.66,7.52]
[1743525414908,37.73418761,128.69,128.66,7.52]
[1743525415095,45.50438761,128.7,128.66,7.52]
[1743525416812,37.73418761,128.69,128.66,7.52]
[1743525417017,37.73418761,128.67,128.61,0.063]
[1743525417188,37.73418761,128.66,128.62,7.52]
[1743525418307,45.50688761,128.66,128.62,7.52]
[1743525418629,7.7727,128.66,128.62,7.52]
[1743525418995,87.0881,128.68,128.62,7.52]
[1743525419319,118.43418761,128.71,128.62,15.2947]
[1743525419695,37.73418761,128.7,128.62,15.2947]
[1743525420297,118.43418761,128.71,128.63,18.933972]
[1743525420510,80.7,128.71,128.63,18.933972]
[1743525420819,51.65528761,128.72,128.65,18.933972]
[1743525421616,43.88638761,128.72,128.65,18.933972]
[1743525421824,87.1012,128.75,128.67,20.0]
[1743525422024,87.1012,128.75,128.68,7.52]
[1743525422336,47.00628761,128.77,128.7,7.77]
[1743525422525,47.00628761,128.77,128.71,223.82]
[1743525424022,9.2721,128.77,128.71,223.82]
[1743525424228,45.49948761,128.78,128.71,231.5893]
[1743525424424,37.73418761,128.77,128.71,223.82]
[1743525425417,37.73418761,128.77,128.71,231.5893]
[1743525425617,45.50008761,128.77,128.71,231.5893]
[1743525427030,45.50008761,128.77,128.71,223.82]
[1743525427625,37.73418761,128.74,128.72,7.5]
[1743525427827,37.73418761,128.73,128.71,223.82]
[1743525428007,37.73418761,128.73,128.72,7.5]
[1743525429029,45.50228761,128.73,128.72,7.5]
[1743525429328,45.50228761,128.73,128.71,223.82]
[1743525429515,37.73418761,128.72,128.71,223.82]
[1743525430921,51.79728761,128.72,128.71,223.82]
[1743525432220,37.73418761,128.68,128.67,7.5]
[1743525433207,45.50538761,128.68,128.67,7.5]
[1743525433536,7.7712,128.68,128.67,7.5]
[1743525433827,37.73418761,128.71,128.67,7.5]
[1743525434029,7.769,128.72,128.67,7.5]
[1743525434224,100.26136157,128.74,128.67,15.2715]
[1743525434225,118.43418761,128.74,128.67,15.2715]
[1743525434637,37.73418761,128.73,128.67,15.2715]
[1743525434933,118.43418761,128.74,128.67,15.2715]
[1743525435234,80.7,128.74,128.67,15.2715]
[1743525435409,118.43418761,128.74,128.67,15.2715]
[1743525435804,37.73418761,128.73,128.67,7.5]
[1743525436426,37.73418761,128.73,128.68,223.78]
[1743525437819,45.50238761,128.73,128.68,223.78]
[1743525438018,37.73418761,128.73,128.68,223.78]
[1743525438219,45.50238761,128.73,128.68,223.78]
[1743525438420,126.20198761,128.74,128.68,231.5511]
[1743525439334,88.4678,128.74,128.68,231.5511]
[1743525439532,37.73418761,128.74,128.68,231.5511]
[1743525439732,45.50138761,128.75,128.68,231.5511]
[1743525439943,37.73418761,128.73,128.68,223.78]
[1743525440113,37.73418761,128.72,128.68,223.78]
[1743525440314,37.73418761,128.71,128.68,223.78]
[1743525441536,37.73418761,128.71,128.69,7.5]
[1743525441714,45.50368761,128.71,128.69,7.5]
[1743525441916,45.50318761,128.72,128.69,7.5]
[1743525442111,7.7682,128.73,128.69,7.5]
[1743525442344,45.53198761,128.74,128.69,7.5]
[1743525443515,0.03,128.74,128.69,7.5]
[1743525443723,0.03,128.74,128.69,15.2704]
[1743525444037,37.76418761,128.74,128.69,7.5]
[1743525445033,37.73418761,128.73,128.69,7.5]
[1743525445235,37.76418761,128.74,128.69,7.5]
[1743525445533,0.03,128.74,128.69,7.5]
[1743525446844,23.56919786,128.74,128.69,7.5]
[1743525447140,23.56919786,128.74,128.68,223.78]
[1743525447141,23.53919786,128.72,128.68,223.78]
[1743525447321,23.53919786,128.71,128.69,7.5]
[1743525448719,31.30899786,128.71,128.69,7.5]
[1743525448919,19.45,128.74,128.69,7.5]
[1743525448920,23.53919786,128.72,128.69,7.5]
[1743525449432,31.30759786,128.73,128.69,7.5]
[1743525451216,7.7684,128.73,128.69,7.5]
[1743525451741,0.03,128.74,128.69,7.5]
[1743525451938,0.03,128.74,128.69,15.2704]
[1743525453844,0.03,128.74,128.69,7.5]
[1743525454046,0.03,128.74,128.7,7.5]
[1743525454626,23.53919786,128.73,128.7,7.5]
[1743525455020,23.53919786,128.73,128.71,7.5]
[1743525455223,31.30779786,128.73,128.71,7.5]
[1743525455436,23.56919786,128.74,128.71,7.5]
[1743525455747,0.03,128.74,128.71,7.5]
[1743525456122,0.03,128.77,128.74,20.0]
[1743525456849,7.7959,128.77,128.71,27.74134886]
[1743525457034,31.33509786,128.77,128.71,108.64134886]
[1743525457342,23.53919786,128.76,128.71,89.9917]
[1743525457527,23.53919786,128.76,128.71,88.4]
[1743525457729,37.65483185,128.76,128.71,88.4]
[1743525458050,37.65483185,128.76,128.71,7.5]
[1743525459032,37.65483185,128.75,128.69,80.9]
[1743525459230,37.65483185,128.76,128.7,7.5]
[1743525459430,7.7669,128.75,128.7,7.5]
[1743525460426,7.7669,128.75,128.71,223.74]
[1743525460834,37.65483185,128.72,128.67,7.5]
[1743525461037,37.65483185,128.69,128.67,7.5]
[1743525461323,7.7718,128.67,128.64,235.95124372]
[1743525461539,7.7718,128.67,128.65,7.5]
[1743525461834,7.7706,128.69,128.65,7.5]
[1743525462165,45.42543185,128.69,128.65,7.5]
[1743525462329,37.65483185,128.68,128.64,223.74]
[1743525462648,37.65483185,128.68,128.65,7.5]
[1743525463478,64.85613185,128.67,128.64,223.74]
[1743525463755,64.85613185,128.67,128.64,231.24]
[1743525463756,37.65483185,128.65,128.64,231.24]
[1743525464128,37.65483185,128.65,128.64,223.74]
[1743525465951,45.42783185,128.65,128.64,223.74]
[1743525466254,37.65483185,128.65,128.64,223.74]
[1743525466639,37.65483185,128.67,128.64,223.74]
[1743525466839,37.65483185,128.66,128.64,223.74]
[1743525467240,37.65483185,128.65,128.64,223.74]
[1743525467652,37.65483185,128.65,128.63,0.063]
[1743525467842,37.65483185,128.64,128.63,0.063]
[1743525468037,102.0172357,128.64,128.63,0.063]
[1743525468845,64.36240385,128.64,128.63,0.063]
[1743525469463,45.71275499,128.64,128.63,0.063]
[1743525472661,45.42843185,128.64,128.63,0.063]
[1743525472846,1.6274,128.68,128.63,0.063]
[1743525473053,45.42663185,128.67,128.63,0.063]
[1743525473864,45.42613185,128.68,128.63,0.063]
[1743525474074,7.7713,128.68,128.63,0.063]
[1743525474365,45.42613185,128.68,128.63,0.063]
[1743525475961,37.65483185,128.67,128.63,0.063]
[1743525476181,37.65483185,128.66,128.63,0.063]
[1743525476557,37.65483185,128.67,128.63,0.063]
[1743525476865,37.65483185,128.67,128.64,7.5]
[1743525478367,45.42723185,128.66,128.64,7.5]
[1743525478569,37.65483185,128.65,128.63,7.563]
[1743525478770,37.65483185,128.64,128.63,7.563]
[1743525479848,30.0,128.64,128.63,0.063]
[1743525480461,37.7736,128.64,128.63,0.063]
[1743525481376,75.42843185,128.64,128.63,0.063]
[1743525483370,77.35935499,128.64,128.63,0.0001]
[1743525483557,133.6638357,128.64,128.63,0.0001]
[1743525485275,20.0,128.61,128.57,284.8562186]
[1743525485464,191.9659357,128.64,128.57,284.8562186]
[1743525485465,37.65483185,128.59,128.57,292.3562186]
[1743525485855,37.65483185,128.59,128.57,231.3]
[1743525486362,37.65483185,128.58,128.57,223.8]
[1743525486770,45.43203185,128.58,128.57,223.8]
[1743525487074,0.28432314,128.57,128.56,12.27424372]
[1743525487281,37.93915499,128.57,128.56,0.063]
[1743525488380,37.65483185,128.57,128.56,0.063]
[1743525488884,45.43263185,128.57,128.56,0.063]
[1743525489674,7.7778,128.57,128.56,0.063]
[1743525489875,45.43263185,128.57,128.56,0.063]
[1743525490070,45.43233185,128.58,128.56,0.063]
[1743525490270,7.776,128.6,128.57,7.5]
[1743525490473,7.7748,128.62,128.57,7.5]
[1743525490666,30.03,128.64,128.57,9.1285]
[1743525490880,37.65483185,128.63,128.57,90.0285]
[1743525491065,37.65483185,128.61,128.57,9.1285]
[1743525491397,37.65483185,128.61,128.57,7.5]
[1743525491696,37.65483185,128.62,128.57,7.5]
[1743525492294,37.65483185,128.59,128.57,7.5]
[1743525492781,6.4986,128.62,128.57,7.5]
[1743525492984,37.65483185,128.59,128.57,7.5]
[1743525493369,45.42983185,128.62,128.57,7.5]
[1743525493878,45.42923185,128.63,128.57,7.5]
[1743525494079,45.45863185,128.64,128.58,18.64964886]
[1743525494268,7.8038,128.64,128.58,18.64964886]
[1743525494772,0.03,128.64,128.59,223.98]
[1743525494985,0.03,128.64,128.59,231.7565]
[1743525495289,0.03,128.64,128.6,6.0416]
[1743525496178,37.68483185,128.64,128.59,304.88]
[1743525496368,37.65483185,128.63,128.59,304.88]
[1743525497067,37.65483185,128.62,128.59,223.98]
[1743525497381,37.65483185,128.61,128.59,223.98]
[1743525497795,37.82699342,128.64,128.59,223.98]
[1743525497796,37.65483185,128.62,128.59,223.98]
[1743525497966,37.65483185,128.63,128.59,223.98]
[1743525498162,37.68483185,128.64,128.59,223.98]
[1743525499279,37.65483185,128.63,128.59,223.98]
[1743525499480,37.65483185,128.61,128.59,223.98]
[1743525500257,37.65483185,128.63,128.59,223.98]
[1743525500964,37.65483185,128.63,128.59,224.043]
[1743525501163,45.45913185,128.63,128.59,224.043]
[1743525501589,37.65483185,128.61,128.59,224.043]
[1743525501760,37.65483185,128.6,128.59,224.043]
[1743525503102,45.57299342,128.6,128.59,224.043]
[1743525503384,45.57299342,128.6,128.59,0.063]
[1743525504366,45.57299342,128.6,128.59,0.0001]
[1743525505380,7.7756,128.61,128.59,0.0001]
[1743525505570,45.43043185,128.61,128.59,0.0001]
[1743525506170,37.65483185,128.61,128.59,0.0001]
[1743525506380,37.65483185,128.6,128.59,0.0001]
[1743525506967,37.79699342,128.6,128.59,0.0001]
[1743525507286,45.57299342,128.6,128.59,0.0001]
[1743525508198,108.2613357,128.6,128.59,0.0001]
[1743525508893,0.14216157,128.57,128.56,0.063]
[1743525509078,45.43263185,128.57,128.56,0.063]
[1743525511094,45.57479342,128.57,128.56,0.063]
[1743525511596,0.14216157,128.56,128.52,12.27082605]
[1743525511780,37.65483185,128.53,128.52,19.77082605]
[1743525512573,37.65483185,128.55,128.52,19.77082605]
[1743525512774,80.7,128.56,128.52,21.22486274]
[1743525512974,45.43263185,128.57,128.53,7.5]
[1743525513490,45.43263185,128.57,128.53,9.84719129]
[1743525513992,45.43263185,128.57,128.54,3.44371393]
[1743525514292,37.65483185,128.56,128.54,3.44371393]
[1743525514587,37.65483185,128.55,128.53,9.84719129]
[1743525514787,37.65483185,128.55,128.53,2.34719129]
[1743525514995,37.65483185,128.54,128.52,0.063]
[1743525515179,45.43503185,128.53,128.52,12.27082605]
[1743525515693,45.43503185,128.53,128.52,21.2240524]
[1743525515994,45.43503185,128.53,128.52,25.8809913]
[1743525516202,45.43503185,128.53,128.52,16.02010949]
[1743525517272,45.57719342,128.53,128.52,9.49e-06]
[1743525517488,84.94728684,128.53,128.52,9.49e-06]
[1743525517692,75.45182527,128.52,128.51,3.554e-05]
[1743525518572,37.79699342,128.52,128.51,3.554e-05]
[1743525518798,37.79699342,128.52,128.5,24.47865211]
[1743525518799,37.79699342,128.52,128.5,0.063]
[1743525518978,37.65483185,128.51,128.5,0.063]
[1743525519177,45.57839342,128.51,128.5,0.063]
[1743525519975,45.43623185,128.51,128.5,0.063]
[1743525522214,7.7814,128.51,128.5,0.063]
[1743525522502,80.7,128.54,128.5,0.063]
[1743525522677,45.43533185,128.53,128.5,0.063]
[1743525522996,37.65483185,128.52,128.5,0.063]
[1743525523382,7.7814,128.51,128.5,0.063]
[1743525527303,7.7811,128.52,128.5,0.063]
[1743525527602,31.40633257,128.53,128.5,0.063]
[1743525528606,23.62613257,128.52,128.5,0.063]
[1743525529803,7.7814,128.51,128.5,0.063]
[1743525531211,7.7814,128.51,128.5,0.063]
[1743525532011,7.7814,128.51,128.5,2.38743422]
[1743525533793,31.40753257,128.51,128.5,2.38743422]
[1743525536505,27.2309,128.53,128.5,2.38743422]
[1743525537019,7.7802,128.53,128.5,0.063]
[1743525537606,0.03,128.51,128.5,0.063]
[1743525537982,0.03,128.51,128.5,18.71264886]
[1743525539089,0.03,128.51,128.5,26.49474886]
[1743525539788,0.03,128.51,128.5,32.51655429]
[1743525540006,0.03,128.51,128.5,118.35388725]
[1743525540344,0.03,128.51,128.5,113.70087743]
[1743525540605,0.03,128.51,128.5,107.679072]
[1743525542097,19.83066121,128.57,128.53,20.0]
[1743525542417,19.83066121,128.57,128.54,7.5]
[1743525542714,7.8081,128.57,128.54,231.6]
[1743525543322,31.43423257,128.57,128.54,231.6]
[1743525543500,23.62613257,128.56,128.54,231.6]
[1743525543812,23.62613257,128.55,128.54,231.6]
[1743525544813,23.62613257,128.56,128.54,231.6]
[1743525545009,7.8081,128.57,128.54,231.6]
[1743525545396,23.62613257,128.56,128.54,231.6]
[1743525545602,23.62613257,128.55,128.54,231.6]
[1743525546815,31.40513257,128.55,128.54,231.6]
[1743525547497,31.40513257,128.55,128.54,7.5]
[1743525548693,50.85273257,128.55,128.5,224.143]
[1743525548917,31.40753257,128.51,128.5,224.143]
[1743525550508,31.40733257,128.52,128.5,224.143]
[1743525550712,7.7812,128.52,128.5,224.143]
[1743525550903,31.40753257,128.51,128.5,224.143]
[1743525552196,31.40753257,128.51,128.5,0.063]
[1743525558421,31.54969414,128.51,128.5,0.063]
[1743525560724,33.21955571,128.51,128.5,0.0001]
[1743525561204,33.24955571,128.51,128.5,0.0001]
[1743525561410,113.94955571,128.51,128.5,0.0001]
[1743525563129,23.76829414,128.5,128.49,0.0001]
[1743525563325,0.14216157,128.5,128.49,0.0001]
[1743525563508,23.76829414,128.5,128.49,0.0001]
[1743525564133,31.55039414,128.5,128.49,0.0001]
[1743525564320,31.69255571,128.5,128.49,0.0001]
[1743525565330,38.17885571,128.5,128.49,0.0001]
[1743525567334,80.98432314,128.49,128.48,0.0001]
[1743525567526,104.61045571,128.49,128.48,0.0001]
[1743525567926,134.61045571,128.49,128.48,0.0001]
[1743525568432,142.39315571,128.49,128.48,0.0001]
[1743525569631,142.10883257,128.49,128.48,0.0001]
[1743525569936,112.10883257,128.49,128.48,0.0001]
[1743525570717,31.69315571,128.49,128.48,0.0001]
[1743525571318,61.69315571,128.49,128.48,0.0001]
[1743525572835,31.69315571,128.49,128.48,0.0001]
[1743525576839,31.40883257,128.49,128.48,0.0001]
[1743525577743,7.7827,128.49,128.48,0.0001]
[1743525577920,0.03,128.51,128.48,0.0001]
[1743525578243,0.03,128.51,128.49,9.0872]
[1743525580928,0.03,128.51,128.5,18.64964886]
[1743525583138,0.03,128.51,128.5,26.43174886]
[1743525583329,0.03,128.51,128.5,18.64964886]
[1743525585345,23.65613257,128.51,128.48,0.0001]
[1743525586232,7.7821,128.5,128.48,0.0001]
[1743525587127,31.40823257,128.5,128.48,0.0001]
[1743525588151,23.62613257,128.49,128.48,0.0001]
[1743525589355,31.40883257,128.49,128.48,0.0001]
[1743525589555,0.03,128.51,128.48,0.0001]
[1743525589732,0.03,128.51,128.49,1.5334]
[1743525589938,0.03,128.51,128.5,18.64964886]
[1743525590139,0.03,128.51,128.49,1.5334]
[1743525590346,7.8115,128.51,128.49,1.5334]
[1743525590766,7.8115,128.51,128.48,0.0001]
[1743525591440,0.03,128.51,128.48,18.64974886]
[1743525591756,0.03,128.51,128.48,0.0001]
[1743525592135,23.65613257,128.51,128.48,0.0001]
[1743525593252,0.03,128.51,128.48,0.0001]
[1743525593855,23.62613257,128.49,128.48,0.0001]
[1743525595156,31.40883257,128.49,128.48,0.0001]
[1743525599275,7.7827,128.49,128.48,0.0001]
[1743525599452,0.03,128.51,128.48,0.0001]
[1743525599652,7.8117,128.51,128.48,0.0001]
[1743525601970,0.03,128.51,128.48,0.28442314]
[1743525602853,0.03,128.51,128.5,18.64964886]
[1743525603050,0.03,128.51,128.5,26.12964886]
[1743525604460,0.03,128.51,128.5,33.91174886]
[1743525604656,0.03,128.51,128.5,35.54374886]
[1743525604859,0.03,128.51,128.5,27.76164886]
[1743525605745,0.03,128.57,128.51,0.28432314]
[1743525606466,0.03,128.57,128.51,8.06562314]
[1743525607259,0.03,128.57,128.52,18.64964886]
[1743525607477,0.03,128.57,128.54,18.64964886]
[1743525607766,0.03,128.57,128.55,7.48]
[1743525608573,23.62613257,128.56,128.55,7.48]
[1743525610569,31.40453257,128.56,128.55,7.48]
[1743525610954,50.85063257,128.56,128.53,224.12]
[1743525611159,23.62613257,128.55,128.53,224.12]
[1743525611360,23.62613257,128.54,128.53,224.12]
[1743525612575,35.2364,128.56,128.53,224.12]
[1743525612772,50.85063257,128.56,128.53,224.12]
[1743525612948,7.7784,128.56,128.53,224.12]
[1743525614473,31.40453257,128.56,128.53,224.12]
[1743525614651,23.62613257,128.55,128.53,224.12]
[1743525615152,23.62613257,128.54,128.53,224.12]
[1743525615678,23.62613257,128.54,128.5,7.48]
[1743525615862,23.62613257,128.53,128.5,7.48]
[1743525616262,23.62613257,128.54,128.5,7.48]
[1743525616780,7.7802,128.53,128.5,7.48]
[1743525618673,7.7796,128.54,128.5,7.48]
[1743525621386,7.7796,128.54,128.5,7.543]
[1743525621756,7.8096,128.54,128.5,7.543]
[1743525622282,23.62613257,128.53,128.5,7.543]
[1743525622481,23.62613257,128.52,128.5,7.543]
[1743525623085,23.62613257,128.53,128.5,7.543]
[1743525623269,0.03,128.54,128.5,7.543]
[1743525623470,23.65613257,128.54,128.5,7.543]
[1743525623792,23.62613257,128.53,128.5,7.543]
[1743525625083,7.7808,128.52,128.5,0.063]
[1743525626490,23.91045571,128.51,128.5,0.0001]
[1743525627379,31.40753257,128.51,128.5,0.0001]
[1743525630782,31.69185571,128.51,128.5,0.0001]